bitfinex/quotes_ETHUSD_20260130
["timestamp","ask_amount","ask_price","bid_price","bid_amount"]
[1769776910998,0.002,2750.2,2749.7,0.02171788]
[1769776911516,0.002,2750.2,2748.5,0.02171788]
[1769776911517,8.62172956,2750.2,2749.0,8.41491769]
[1769776911691,8.62172956,2750.2,2748.9,0.02171788]
[1769776912291,8.62172956,2750.2,2749.3,0.02171788]
[1769776913312,8.62172956,2750.2,2749.5,0.02171788]
[1769776913511,8.62172956,2750.2,2749.3,0.02171788]
[1769776913714,9.48410252,2750.2,2749.3,0.86755323]
[1769776915099,9.48410252,2750.2,2749.3,0.02171788]
[1769776915924,9.48410252,2750.2,2749.0,0.02171788]
[1769776916630,9.48410252,2750.2,2749.4,0.02171788]
[1769776916801,0.002,2750.2,2749.6,0.02171788]
[1769776918102,0.002,2750.2,2749.8,0.02171788]
[1769776920903,0.002,2750.2,2749.6,8.43663557]
[1769776921120,0.002,2750.2,2749.8,0.02171788]
[1769776921434,0.002,2750.2,2749.8,0.86755323]
[1769776921824,0.002,2750.2,2749.8,0.84583535]
[1769776929440,0.002,2750.2,2750.0,0.001]
[1769776930526,0.002,2750.2,2749.6,8.43663557]
[1769776930741,0.002,2750.2,2745.0,10.40520579]
[1769776930742,8.50145978,2750.1,2748.2,9.08138108]
[1769776930955,8.50145978,2749.9,2748.2,0.02271788]
[1769776931131,8.50145978,2749.9,2748.4,0.02171788]
[1769776931921,8.50145978,2749.9,2748.6,0.02171788]
[1769776933442,8.50145978,2749.9,2748.8,0.02171788]
[1769776934737,8.50145978,2749.9,2748.6,0.02171788]
[1769776934934,8.50145978,2749.9,2748.8,0.02171788]
[1769776937323,8.50145978,2749.9,2748.6,9.08038108]
[1769776937524,8.50145978,2749.7,2748.8,0.02171788]
[1769776937754,8.50145978,2749.7,2748.6,9.08038108]
[1769776937960,8.50145978,2749.7,2748.8,0.02171788]
[1769776938255,8.50145978,2749.7,2748.6,0.02171788]
[1769776938455,8.50145978,2749.7,2748.2,0.02271788]
[1769776938456,9.41066842,2749.7,2748.2,0.02271788]
[1769776938659,8.50145978,2749.5,2748.4,0.02171788]
[1769776938876,8.50145978,2749.5,2748.2,0.02271788]
[1769776939734,8.50145978,2749.3,2748.2,0.001]
[1769776939930,0.763,2749.2,2748.2,0.001]
[1769776940159,8.50145978,2749.1,2748.2,0.001]
[1769776940359,8.50145978,2748.9,2747.5,0.02171788]
[1769776940854,8.50145978,2748.9,2747.6,0.02171788]
[1769776941187,8.50145978,2748.9,2748.4,0.001]
[1769776941386,8.50145978,2748.9,2747.6,0.02171788]
[1769776941592,8.50145978,2748.7,2747.6,0.02171788]
[1769776946303,8.50145978,2748.7,2747.8,0.02171788]
[1769776946608,8.50145978,2748.7,2748.0,0.02171788]
[1769776946785,0.94279058,2748.8,2748.0,0.02171788]
[1769776946991,0.94279058,2748.8,2748.2,0.02171788]
[1769776947186,0.94442504,2748.7,2748.2,0.02171788]
[1769776947378,0.94442504,2748.7,2748.0,0.02171788]
[1769776948311,8.50145978,2749.2,2748.2,0.02171788]
[1769776948479,8.50145978,2749.2,2748.4,0.02171788]
[1769776949795,8.50145978,2749.2,2748.2,9.08038108]
[1769776950111,8.50145978,2749.2,2748.4,0.02171788]
[1769776950414,0.85014598,2749.1,2748.4,0.02171788]
[1769776951216,9.35160576,2749.1,2748.4,0.02171788]
[1769776953019,9.35160576,2749.1,2748.4,0.02271788]
[1769776953196,0.002,2748.9,2748.4,0.02271788]
[1769776954416,0.002,2748.9,2748.4,9.08138108]
[1769776954631,0.002,2749.1,2748.7,9.0586632]
[1769776954924,0.002,2749.1,2748.8,0.02171788]
[1769776955240,0.002,2749.1,2748.5,9.96680131]
[1769776955404,0.002,2749.1,2748.5,0.90813811]
[1769776956232,0.002,2749.1,2748.6,0.02171788]
[1769776956746,0.002,2749.1,2748.4,0.001]
[1769776956747,9.43701141,2749.1,2748.4,0.001]
[1769776956932,8.58666543,2749.1,2748.4,0.001]
[1769776957537,8.58666543,2749.1,2747.6,8.23815142]
[1769776957707,8.58666543,2749.1,2747.8,0.02171788]
[1769776960234,8.58666543,2749.1,2748.0,0.02171788]
[1769776960442,8.37539206,2748.9,2748.0,0.02171788]
[1769776962002,8.37539206,2748.9,2747.8,8.23815142]
[1769776962202,8.37539206,2748.9,2748.0,8.23815142]
[1769776963239,8.37539206,2748.9,2748.2,0.02171788]
[1769776964433,8.37539206,2748.9,2748.0,8.23815142]
[1769776964635,9.29899792,2748.9,2748.0,9.06413835]
[1769776964841,0.92360586,2748.9,2748.2,8.21643354]
[1769776965536,0.92360586,2748.9,2748.2,8.21743354]
[1769776965730,0.92560586,2748.9,2748.2,0.001]
[1769776967542,0.92560586,2748.9,2748.3,0.02171788]
[1769776968454,0.92560586,2748.9,2748.3,8.23815142]
[1769776968616,0.92560586,2748.9,2748.3,8.21643354]
[1769776968617,0.002,2748.9,2748.3,8.21643354]
[1769776968817,0.002,2748.9,2748.4,0.02171788]
[1769776969424,0.002,2748.9,2748.4,8.23815142]
[1769776970353,0.002,2748.9,2748.5,0.02171788]
[1769776971666,0.002,2748.9,2748.4,8.21643354]
[1769776971960,0.002,2748.9,2748.5,0.82381514]
[1769776972659,0.002,2748.9,2748.3,0.02171788]
[1769776974360,0.002,2748.9,2748.3,0.02171788]
[1769776974935,0.002,2748.9,2748.3,8.23815142]
[1769776975549,0.002,2748.9,2748.5,0.02171788]
[1769776976640,0.002,2748.9,2748.3,8.23815142]
[1769776977362,0.002,2748.7,2748.3,8.23815142]
[1769776977570,0.002,2748.7,2748.4,0.82391514]
[1769776981670,0.002,2748.7,2748.5,0.02171788]
[1769776982540,0.002,2748.7,2748.5,8.23815142]
[1769776982742,0.001,2748.7,2748.5,8.23815142]
[1769776982949,5.94e-06,2749.1,2748.6,8.21643354]
[1769776983176,5.94e-06,2749.1,2748.7,9.06196656]
[1769776983385,5.94e-06,2749.1,2748.9,0.02171788]
[1769776984955,5.94e-06,2749.1,2748.7,9.06196656]
[1769776985552,5.94e-06,2749.1,2748.9,0.02171788]
[1769776987663,5.94e-06,2749.1,2748.7,9.06196656]
[1769776987861,5.94e-06,2749.1,2748.8,0.90619666]
[1769776988651,7.81916614,2749.1,2748.2,0.001]
[1769776989279,0.002,2748.9,2748.2,0.001]
[1769776989481,7.8211602,2748.9,2748.2,0.001]
[1769776990468,7.8211602,2748.9,2748.3,0.02171788]
[1769776991375,0.002,2748.9,2748.5,0.02171788]
[1769776991580,5.94e-06,2749.1,2748.7,0.02171788]
[1769776995381,5.94e-06,2749.1,2748.9,0.02171788]
[1769776996095,5.94e-06,2749.1,2748.5,0.81973599]
[1769776996260,5.94e-06,2749.1,2748.3,0.02171788]
[1769777001389,5.94e-06,2749.1,2748.5,0.001]
[1769777002268,7.81916614,2749.1,2748.5,0.001]
[1769777006102,0.09085314,2749.1,2748.5,0.001]
[1769777013105,0.002,2748.9,2748.5,0.001]
[1769777016826,0.002,2749.1,2748.6,8.21494997]
[1769777016985,8.29295093,2749.9,2749.0,8.21494997]
[1769777017181,0.002,2750.0,2749.4,0.02171788]
[1769777017380,0.002,2750.0,2749.2,0.02171788]
[1769777017688,8.29495093,2750.0,2749.1,8.19323209]
[1769777017887,9.12464602,2750.0,2749.2,0.02171788]
[1769777018612,9.12464602,2750.0,2749.1,1.201495]
[1769777018995,9.12464602,2750.0,2748.9,3.8]
[1769777020414,8.29295093,2749.7,2748.9,3.8]
[1769777022696,8.29295093,2749.7,2748.5,0.001]
[1769777022697,8.29295093,2749.4,2748.5,0.001]
[1769777022907,5.30775448,2749.5,2748.5,8.19423209]
[1769777023115,13.60070541,2749.5,2748.5,8.19423209]
[1769777023416,9.65302147,2749.4,2748.5,9.0136553]
[1769777025414,9.65302147,2749.4,2748.7,0.001]
[1769777028196,1.36007054,2749.4,2748.7,8.19423209]
[1769777028515,13.60070541,2749.8,2748.7,8.19423209]
[1769777028732,8.29295093,2749.7,2748.7,0.001]
[1769777030832,8.29295093,2749.4,2748.7,0.001]
[1769777036841,8.29295093,2749.7,2748.7,8.19423209]
[1769777037010,9.72932147,2749.6,2748.9,0.001]
[1769777037207,0.002,2749.5,2748.9,0.001]
[1769777037411,8.29495093,2749.5,2748.9,0.001]
[1769777057593,8.29495093,2749.5,2748.7,0.001]
[1769777057892,8.29495093,2749.5,2747.6,8.08173816]
[1769777057893,8.31975097,2748.5,2747.6,8.08173816]
[1769777058102,8.31975097,2748.5,2747.5,0.02171788]
[1769777058103,0.763,2748.4,2747.7,8.10345604]
[1769777058287,0.763,2748.4,2747.9,0.02171788]
[1769777059303,0.763,2748.4,2747.7,8.10345604]
[1769777059475,1.64174662,2748.4,2747.7,8.10345604]
[1769777059877,9.96149759,2748.4,2747.7,8.08173816]
[1769777060177,9.96149759,2748.4,2747.4,0.02271788]
[1769777061065,8.31975097,2748.2,2747.4,0.001]
[1769777065722,8.31975097,2748.2,2747.4,8.08273816]
[1769777065891,0.763,2748.1,2747.5,8.10345604]
[1769777066092,0.763,2748.1,2747.5,0.02171788]
[1769777066618,9.08275097,2748.1,2747.5,0.02171788]
[1769777066776,9.08275097,2748.1,2747.4,0.02271788]
[1769777068342,9.08275097,2748.1,2747.4,0.001]
[1769777068637,0.99124461,2748.0,2747.4,0.001]
[1769777069528,8.31975097,2747.9,2747.4,0.001]
[1769777069718,8.31975097,2747.9,2747.2,0.001]
[1769777072036,8.31975097,2747.9,2747.6,0.001]
[1769777072225,8.31975097,2747.9,2747.2,0.001]
[1769777072433,8.31975097,2747.7,2747.2,0.001]
[1769777072955,8.31975097,2747.7,2747.0,0.001]
[1769777074530,8.31975097,2747.7,2746.7,0.001]
[1769777075098,8.31975097,2747.7,2746.7,0.02271788]
[1769777077233,13.62600675,2747.7,2746.7,0.02271788]
[1769777077433,13.62600675,2747.7,2746.7,0.001]
[1769777077434,9.69817698,2747.6,2746.7,0.001]
[1769777077751,8.2080942,2747.4,2746.7,0.001]
[1769777078106,8.2080942,2747.3,2746.7,0.001]
[1769777078607,8.2080942,2747.3,2746.3,0.02271788]
[1769777078803,8.2080942,2747.1,2746.3,0.02271788]
[1769777080442,8.2080942,2747.1,2746.3,0.02171788]
[1769777080647,8.2080942,2747.0,2746.0,0.001]
[1769777080834,8.2080942,2746.8,2746.0,0.001]
[1769777081028,0.763,2746.9,2746.2,0.02171788]
[1769777081624,0.87874662,2746.8,2746.2,0.02171788]
[1769777081821,0.87874662,2746.8,2746.1,8.78089276]
[1769777082448,9.08684082,2746.8,2746.0,0.02271788]
[1769777082650,9.08684082,2746.8,2746.0,0.001]
[1769777083144,8.2080942,2746.7,2746.0,0.001]
[1769777083343,1.27482102,2746.6,2746.0,0.001]
[1769777084164,8.2080942,2746.6,2746.2,0.001]
[1769777084535,9.08684082,2746.8,2746.2,0.001]
[1769777086697,8.2080942,2746.6,2746.0,0.001]
[1769777086970,8.2080942,2746.3,2745.5,8.78089276]
[1769777088260,8.2080942,2746.3,2745.3,8.78089276]
[1769777088466,8.9710942,2746.3,2745.3,8.78089276]
[1769777088961,8.2080942,2746.0,2745.1,8.78089276]
[1769777089366,13.51434998,2745.5,2744.9,0.002]
[1769777089552,13.51434998,2745.5,2744.7,8.78089276]
[1769777089942,8.2080942,2745.4,2744.5,0.02271788]
[1769777090156,0.763,2745.6,2744.5,0.001]
[1769777090157,5.30625578,2745.2,2744.5,0.001]
[1769777090357,8.2080942,2745.1,2744.5,0.001]
[1769777090869,8.2080942,2744.8,2743.5,0.02171788]
[1769777091038,13.51434998,2744.6,2743.6,8.78289276]
[1769777091233,9.21301376,2744.5,2743.7,8.80261064]
[1769777091454,9.21301376,2744.5,2743.7,8.78089276]
[1769777092549,5.30625578,2744.3,2743.6,0.002]
[1769777092746,0.763,2744.4,2743.6,8.80461064]
[1769777094180,8.2080942,2744.6,2743.6,8.80461064]
[1769777094181,13.51434998,2744.5,2743.6,8.78289276]
[1769777094348,0.764,2744.4,2743.6,8.78289276]
[1769777096347,0.764,2744.4,2743.8,0.002]
[1769777096546,8.9720942,2744.4,2743.8,0.002]
[1769777098653,8.9720942,2744.4,2743.6,0.002]
[1769777098849,1.427835,2744.3,2743.6,0.002]
[1769777099188,9.6359292,2744.3,2743.6,0.002]
[1769777101449,9.6359292,2744.3,2743.6,8.78289276]
[1769777101450,0.764,2744.2,2743.6,8.78289276]
[1769777101786,8.2090942,2744.9,2744.0,8.78089276]
[1769777101962,0.764,2744.5,2743.8,8.78089276]
[1769777103179,0.764,2744.6,2744.0,8.78089276]
[1769777103487,0.764,2744.6,2743.8,9.66135382]
[1769777104456,0.764,2744.6,2743.9,0.02171788]
[1769777104857,0.001,2744.9,2743.9,8.80261064]
[1769777105055,0.001,2744.9,2744.2,8.78089276]
[1769777107167,14.02621669,2744.5,2743.5,9.0360995]
[1769777108258,8.69943771,2744.4,2743.5,0.002]
[1769777108458,8.69943771,2744.1,2743.5,0.002]
[1769777109102,8.69943771,2744.1,2743.1,0.002]
[1769777109103,5.32677898,2743.6,2743.1,0.002]
[1769777109396,0.5326779,2743.6,2743.1,0.002]
[1769777109572,14.02621669,2743.9,2743.1,0.002]
[1769777109889,8.69943771,2743.8,2743.1,0.002]
[1769777110093,5.32677898,2743.5,2742.5,0.002]
[1769777110256,14.79021669,2743.5,2742.5,9.0360995]
[1769777110885,0.764,2743.5,2742.8,9.0340995]
[1769777111089,0.764,2743.7,2742.9,9.05581738]
[1769777111265,4.28304217,2745.0,2742.9,9.05581738]
[1769777111266,8.69943771,2744.3,2743.1,9.05581738]
[1769777111472,0.764,2744.2,2743.4,0.02171788]
[1769777111890,0.764,2744.2,2743.3,9.0340995]
[1769777114192,0.764,2744.2,2743.4,9.05581738]
[1769777114796,0.764,2744.2,2743.4,9.0340995]
[1769777114996,0.764,2744.2,2743.1,0.02171788]
[1769777114997,0.764,2744.2,2743.2,9.0340995]
[1769777115179,9.46343771,2744.2,2743.2,9.0340995]
[1769777115379,9.64578148,2744.1,2742.3,3.65814905]
[1769777115576,9.64578148,2744.1,2742.4,9.0340995]
[1769777115896,9.64578148,2744.1,2742.5,9.05781738]
[1769777116391,9.64578148,2744.1,2742.5,0.002]
[1769777116392,8.69943771,2743.9,2742.5,0.002]
[1769777116968,8.69943771,2743.9,2742.5,9.0360995]
[1769777118699,8.69943771,2743.9,2742.6,9.05581738]
[1769777118905,9.57962148,2743.8,2742.6,9.05581738]
[1769777119074,8.69943771,2743.8,2742.6,9.05581738]
[1769777119772,9.46343771,2743.8,2742.8,0.02171788]
[1769777120185,9.46343771,2743.8,2742.6,9.05581738]
[1769777120916,9.46343771,2743.8,2742.7,0.002]
[1769777121114,0.94634377,2743.7,2742.7,0.002]
[1769777121326,9.64578148,2743.7,2742.7,0.002]
[1769777122374,9.64578148,2743.7,2742.7,0.02371788]
[1769777122575,9.64578148,2743.7,2742.7,9.05781738]
[1769777125004,0.94634377,2743.7,2742.7,9.05781738]
[1769777125206,9.46343771,2743.8,2742.8,9.05581738]
[1769777125416,9.46343771,2743.8,2742.8,9.0340995]
[1769777126017,8.69943771,2743.8,2742.9,9.05581738]
[1769777126328,8.69943771,2743.8,2742.9,9.0340995]
[1769777127127,8.69943771,2743.8,2742.7,9.0360995]
[1769777127340,9.56938148,2743.7,2742.7,9.0360995]
[1769777128593,9.56938148,2743.7,2742.7,0.002]
[1769777131436,9.56938148,2743.7,2742.7,9.0360995]
[1769777131602,0.86994377,2743.7,2742.7,9.0360995]
[1769777132212,9.56938148,2743.7,2742.7,9.0360995]
[1769777132414,0.95693815,2743.6,2742.7,9.0360995]
[1769777132807,0.95693815,2743.6,2742.8,0.002]
[1769777133220,0.95793815,2743.6,2742.8,9.0360995]
[1769777133614,6.28765096,2743.6,2742.8,9.0360995]
[1769777134314,14.98708867,2743.6,2742.8,9.0360995]
[1769777134514,1.49870887,2743.5,2742.8,9.0360995]
[1769777136332,1.49870887,2743.5,2742.8,0.002]
[1769777136830,9.92361774,2743.5,2742.8,0.002]
[1769777140536,5.32971281,2743.3,2742.5,0.002]
[1769777140742,0.71380129,2743.2,2742.5,0.002]
[1769777141109,0.71380129,2743.2,2742.6,8.46236221]
[1769777141520,0.71380129,2743.2,2742.5,0.002]
[1769777142125,9.13871016,2743.2,2742.5,0.002]
[1769777142845,9.13871016,2743.2,2741.8,0.02471788]
[1769777142846,5.32971281,2742.7,2741.8,0.003]
[1769777143016,0.53297128,2742.6,2741.9,8.46236221]
[1769777143427,8.42490887,2742.9,2742.0,8.46236221]
[1769777144713,6.09371281,2743.0,2742.1,8.47136221]
[1769777145141,8.42490887,2742.9,2742.3,0.002]
[1769777145333,5.32971281,2742.7,2741.9,8.46236221]
[1769777145523,6.70517498,2742.7,2742.0,0.002]
[1769777147441,15.13008385,2742.7,2742.0,0.002]
[1769777147945,8.42490887,2742.6,2741.8,0.003]
[1769777148123,5.32971281,2741.8,2741.4,0.002]
[1769777148324,0.55198307,2741.7,2741.0,0.002]
[1769777149042,8.97689194,2741.7,2741.0,0.002]
[1769777152340,0.55198307,2741.7,2741.0,0.002]
[1769777152529,8.61502677,2741.9,2741.0,0.002]
[1769777154261,8.42490887,2741.9,2741.0,0.002]
[1769777156348,8.42490887,2741.9,2740.5,0.02171788]
[1769777156552,8.42490887,2741.7,2740.5,8.46236221]
[1769777156753,0.97158448,2741.6,2740.5,8.46236221]
[1769777156954,9.39649335,2741.6,2740.5,8.46236221]
[1769777157851,0.97158448,2741.6,2740.7,8.46236221]
[1769777158056,0.97158448,2741.6,2741.2,0.002]
[1769777159345,0.97158448,2741.6,2741.2,0.001]
[1769777159742,0.97158448,2741.6,2741.0,0.00100598]
[1769777160259,8.42590887,2741.7,2741.0,8.46336819]
[1769777160260,0.001,2741.7,2741.0,8.46336819]
[1769777160733,8.42490887,2742.3,2741.0,0.00100598]
[1769777160941,0.57199086,2743.1,2741.0,0.00100598]
[1769777160942,9.18990887,2742.6,2741.1,8.48408009]
[1769777161328,7.91339857,2743.2,2741.7,8.46236221]
[1769777161329,8.42490887,2743.1,2741.7,8.46236221]
[1769777161653,0.71380129,2743.2,2742.0,8.46236221]
[1769777161869,0.91397102,2743.1,2742.2,8.48408009]
[1769777162057,0.001,2743.3,2742.5,8.46236221]
[1769777162568,0.001,2743.3,2742.5,8.27230728]
[1769777163332,0.52593591,2743.2,2742.2,8.46236221]
[1769777163653,0.001,2743.3,2742.4,8.46236221]
[1769777165032,8.42490887,2743.0,2741.5,8.46236221]
[1769777165256,8.42490887,2743.0,2741.6,9.30859843]
[1769777165892,8.42490887,2743.0,2741.6,8.46236221]
[1769777166398,9.08957159,2743.2,2741.8,8.46236221]
[1769777166550,9.08957159,2743.2,2741.8,8.72695412]
[1769777167879,0.001,2743.3,2742.0,8.72695412]
[1769777168186,0.001,2743.3,2742.2,8.72695412]
[1769777168358,0.001,2743.3,2742.3,9.50504683]
[1769777168684,9.09057159,2743.3,2741.8,8.72695412]
[1769777168977,9.09057159,2743.3,2742.0,8.72695412]
[1769777171000,0.001,2743.3,2742.0,8.72695412]
[1769777171168,0.001,2743.1,2742.0,8.72695412]
[1769777172264,0.001,2743.1,2742.1,0.02171788]
[1769777172459,0.001,2743.1,2742.2,8.72695412]
[1769777172676,0.001,2743.1,2742.4,8.72695412]
[1769777176271,0.001,2743.1,2742.3,0.8748672]
[1769777176701,0.001,2743.1,2742.3,9.60182132]
[1769777177500,0.001,2743.1,2742.5,8.72695412]
[1769777182184,0.001,2743.6,2742.7,8.72695412]
[1769777182387,0.001,2743.6,2742.9,8.72695412]
[1769777184727,0.001,2743.6,2742.8,0.8748672]
[1769777184886,9.09057159,2743.6,2742.6,8.72695412]
[1769777185517,0.001,2743.6,2742.6,8.72695412]
[1769777189017,0.30769468,2744.0,2743.3,8.72695412]
[1769777189203,0.30769468,2744.0,2742.9,8.72695412]
[1769777189403,0.30769468,2744.0,2743.0,9.59964953]
[1769777189723,0.30769468,2744.0,2742.4,0.02171788]
[1769777189724,9.39726627,2744.0,2742.5,9.49095412]
[1769777190298,0.30769468,2744.0,2742.7,8.72695412]
[1769777191525,0.30769468,2744.0,2742.8,0.02171788]
[1769777191736,9.39726627,2744.0,2742.6,8.72695412]
[1769777193642,14.42218874,2743.0,2742.1,3.8]
[1769777193935,14.42218874,2743.0,2742.0,8.72695412]
[1769777194150,5.33261715,2743.3,2742.0,8.72695412]
[1769777194310,5.33261715,2743.6,2742.0,8.748672]
[1769777194639,0.30769468,2744.0,2743.2,8.72695412]
[1769777194801,0.30769468,2744.0,2743.3,10.15462913]
[1769777195126,9.08957159,2744.6,2743.4,8.72695412]
[1769777195315,0.001,2744.7,2743.5,8.72695412]
[1769777195517,0.001,2744.7,2743.4,8.72695412]
[1769777195726,0.001,2744.7,2743.6,8.748672]
[1769777197717,0.001,2744.7,2743.6,8.72695412]
[1769777197924,8.7364636,2744.7,2743.6,8.72695412]
[1769777198129,0.001,2744.7,2743.6,8.72695412]
[1769777199525,8.7364636,2744.7,2743.6,8.72695412]
[1769777199724,9.61020996,2744.7,2743.7,0.9742417]
[1769777199925,9.61020996,2744.7,2743.3,8.97326624]
[1769777200723,9.61020996,2744.7,2743.2,0.02171788]
[1769777200724,9.61020996,2744.7,2743.0,8.97326624]
[1769777200928,8.7354636,2744.5,2743.0,8.97326624]
[1769777201255,8.7354636,2744.5,2743.0,8.99498412]
[1769777202133,8.7354636,2744.5,2743.3,8.97326624]
[1769777202331,9.6964846,2744.5,2743.4,0.89949841]
[1769777202830,9.6964846,2744.5,2743.1,8.97326624]
[1769777203819,0.961021,2744.5,2743.3,8.97326624]
[1769777204019,8.7354636,2744.6,2743.3,8.97326624]
[1769777207319,0.001,2744.7,2743.5,8.97326624]
[1769777207838,0.001,2744.5,2743.5,8.97326624]
[1769777208161,0.001,2744.5,2743.4,0.02171788]
[1769777208162,0.001,2744.5,2743.7,8.97326624]
[1769777208862,0.001,2744.5,2743.9,8.97326624]
[1769777209159,0.001,2744.5,2744.0,9.87276465]
[1769777211029,0.001,2744.9,2744.2,8.99498412]
[1769777211363,0.001,2744.9,2744.2,8.97326624]
[1769777211527,0.32186517,2745.5,2744.4,8.97326624]
[1769777212055,0.32186517,2745.5,2744.6,8.97326624]
[1769777212260,0.32186517,2745.5,2744.7,9.87276465]
[1769777212763,0.764,2745.9,2744.9,8.97326624]
[1769777212943,8.7354636,2746.6,2745.1,8.97326624]
[1769777213772,8.7354636,2747.1,2745.5,8.97326624]
[1769777214334,8.8378636,2747.0,2745.5,8.97326624]
[1769777214656,0.88378636,2746.9,2745.7,8.97326624]
[1769777215343,9.61924996,2746.9,2745.6,0.89949841]
[1769777216950,9.61924996,2746.9,2745.1,8.97326624]
[1769777217488,8.7354636,2746.7,2744.8,8.97326624]
[1769777217673,8.7354636,2746.7,2744.9,8.97326624]
[1769777217854,8.7354636,2746.7,2745.0,8.99498412]
[1769777218049,8.7354636,2746.5,2745.0,8.99498412]
[1769777218380,8.7354636,2746.5,2745.0,8.97326624]
[1769777218984,0.87354636,2746.6,2745.3,8.97326624]
[1769777219184,0.87354636,2746.6,2744.3,8.99498412]
[1769777219185,8.7354636,2746.5,2744.3,8.99498412]
[1769777219358,8.8378636,2746.0,2744.1,8.97326624]
[1769777219679,9.6018636,2746.0,2744.1,8.97326624]
[1769777220049,9.6018636,2746.0,2744.2,0.02171788]
[1769777220269,9.6018636,2746.0,2744.3,8.97326624]
[1769777220451,1.59506431,2745.9,2744.6,8.99498412]
[1769777220651,10.33052791,2745.9,2744.4,0.89949841]
[1769777220962,10.33052791,2745.9,2744.4,0.92121629]
[1769777221900,10.33052791,2745.9,2744.2,0.02371788]
[1769777221901,4.810071,2745.7,2744.2,0.002]
[1769777222052,8.7354636,2745.7,2744.2,8.97526624]
[1769777222251,8.7354636,2745.7,2744.3,8.99498412]
[1769777223078,8.7354636,2745.7,2744.5,0.02171788]
[1769777223380,8.7354636,2745.7,2744.5,0.92338808]
[1769777223381,0.87354636,2745.6,2744.5,0.92338808]
[1769777225681,0.87354636,2745.6,2744.5,9.89665432]
[1769777225890,0.87354636,2745.6,2744.5,9.87493644]
[1769777227683,10.01246699,2745.6,2744.5,0.9016702]
[1769777227991,10.01246699,2745.6,2744.3,8.99952581]
[1769777230176,10.01246699,2745.6,2744.5,8.99952581]
[1769777230901,10.01246699,2745.6,2744.6,8.99952581]
[1769777231066,10.01246699,2745.6,2744.6,8.97780793]
[1769777235925,9.13892063,2745.9,2744.8,8.97780793]
[1769777236825,9.13892063,2745.9,2744.5,8.97980793]
[1769777237032,9.13892063,2745.9,2744.6,0.02171788]
[1769777237181,9.13892063,2745.7,2744.6,9.90185018]
[1769777237891,9.13892063,2745.7,2744.7,8.99952581]
[1769777238112,0.91389206,2745.8,2744.7,8.99952581]
[1769777238814,0.91389206,2745.8,2744.7,8.97780793]
[1769777239004,9.13892063,2745.7,2744.5,0.002]
[1769777241591,3.64231793,2746.3,2744.9,8.97780793]
[1769777241592,9.13892063,2746.0,2744.9,8.97780793]
[1769777241788,9.13992063,2746.3,2745.0,8.99952581]
[1769777242022,9.13992063,2746.3,2745.2,0.02171788]
[1769777242203,9.13992063,2746.3,2745.2,0.92384225]
[1769777242204,0.91399206,2746.2,2745.2,0.92384225]
[1769777242621,0.91399206,2746.2,2745.3,8.99952581]
[1769777242815,9.13992063,2746.3,2745.3,8.97780793]
[1769777244105,9.13992063,2746.3,2745.2,0.90212437]
[1769777244309,0.001,2746.3,2745.3,8.97780793]
[1769777245009,9.13992063,2746.3,2745.2,0.90212437]
[1769777245806,9.13992063,2746.3,2744.7,8.97780793]
[1769777246442,9.13992063,2746.3,2744.8,0.02171788]
[1769777246749,9.13992063,2746.3,2745.0,8.99952581]
[1769777247237,0.001,2746.1,2745.0,8.99952581]
[1769777248137,0.001,2746.1,2744.8,0.02171788]
[1769777248310,0.001,2746.1,2745.1,8.97780793]
[1769777248646,0.001,2746.1,2745.2,9.87776051]
[1769777248824,0.001,2746.1,2744.9,8.97780793]
[1769777248825,9.13992063,2746.1,2744.9,8.97780793]
[1769777250440,9.13992063,2746.1,2744.7,0.02371788]
[1769777251350,9.13992063,2746.1,2744.7,9.00152581]
[1769777252643,9.13992063,2746.1,2744.7,0.002]
[1769777252644,9.13892063,2745.9,2744.7,0.002]
[1769777258622,9.13892063,2745.9,2744.7,8.9846918]
[1769777258827,10.05291269,2745.9,2744.8,9.88333277]
[1769777260656,10.05291269,2745.9,2744.9,0.002]
[1769777260854,0.001,2745.7,2744.9,0.002]
[1769777261946,0.001,2745.7,2745.1,8.9826918]
[1769777262458,0.001,2745.7,2744.9,12.80640968]
[1769777262757,0.001,2745.7,2745.1,0.02171788]
[1769777263068,0.001,2745.7,2745.1,9.00440968]
[1769777263833,0.765,2746.1,2745.2,8.9826918]
[1769777265532,0.765,2746.1,2745.3,8.9826918]
[1769777267070,0.001,2746.1,2745.3,8.9826918]
[1769777267233,0.001,2746.1,2745.4,0.89826918]
[1769777267429,0.001,2746.1,2745.5,8.9826918]
[1769777272482,0.001,2746.1,2745.3,0.02171788]
[1769777272689,0.001,2746.1,2745.2,8.9826918]
[1769777272985,0.001,2746.1,2745.3,9.00440968]
[1769777273969,0.001,2745.9,2745.3,9.00440968]
[1769777274166,0.001,2746.1,2745.5,9.00440968]
[1769777274366,0.001,2746.3,2745.6,8.9826918]
[1769777274767,0.001,2746.3,2745.7,0.02171788]
[1769777274986,0.001,2746.3,2745.6,8.9826918]
[1769777275496,0.001,2746.3,2745.4,8.9826918]
[1769777275674,0.001,2746.3,2745.5,1.30215885]
[1769777276392,0.001,2746.3,2745.6,8.9826918]
[1769777277576,0.001,2746.3,2745.8,8.9826918]
[1769777280780,0.764,2746.8,2745.9,9.00440968]
[1769777282072,0.764,2746.8,2745.9,8.9826918]
[1769777282297,0.764,2746.8,2746.0,0.89826918]
[1769777282509,0.32312311,2747.2,2746.0,10.66667886]
[1769777282678,0.002,2747.5,2746.8,9.00440968]
[1769777283295,0.002,2747.5,2747.1,8.9826918]
[1769777283498,0.002,2747.5,2747.2,0.02171788]
[1769777283816,0.002,2747.5,2747.2,9.00440968]
[1769777284116,0.002,2747.5,2747.3,0.90044097]
[1769777284978,0.002,2747.5,2747.3,9.90485065]
[1769777285205,0.002,2747.5,2747.3,9.88313277]
[1769777286318,0.002,2747.5,2747.3,0.90044097]
[1769777286624,0.002,2747.5,2747.1,0.763]
[1769777287688,0.002,2747.5,2747.1,9.48078403]
[1769777287889,0.002,2747.5,2747.1,0.763]
[1769777288090,0.002,2748.2,2747.1,9.48078403]
[1769777288291,8.39020788,2748.2,2747.1,8.71778403]
[1769777288519,8.38820788,2748.0,2747.2,0.8717784]
[1769777288723,8.39020788,2747.7,2746.3,0.763]
[1769777288896,8.38820788,2747.5,2746.2,0.763]
[1769777289650,8.38820788,2747.5,2746.1,1.05921748]
[1769777289794,8.38820788,2747.5,2746.1,1.82221748]